fUSD/lending_fUSD_20240812
["ID","MTS","AMOUNT","RATE_DAILY","PERIOD"]
[334677670,1723465839800,-6257.15365588,0.00011,2]
[334677675,1723465839842,-701.66503495,0.00011,2]
[334677678,1723465839854,-1209.49724686,0.00011,2]
[334677684,1723465839903,-300.0,0.00011,2]
[334677929,1723465843749,-823.52658831,0.00010861,2]
[334677933,1723465843773,-20.82941169,0.00010861,2]
[334677935,1723465843783,-333.24857117,0.000109,2]
[334677938,1723465843804,-895.88804481,0.000109,2]
[334678028,1723465845689,-1216.07779227,0.000109,2]
[334678029,1723465845749,-485.99853447,0.000109,2]
[334678030,1723465845759,-187.45103266,0.00010973,2]
[334678031,1723465845811,-12.54896734,0.00010973,2]
[334678032,1723465845821,-681.88000374,0.00011,2]
[334678033,1723465845928,-6751.79144901,0.00011,2]
[334678034,1723465845940,-299.16,0.00011,2]
[334678035,1723465845997,-1193.28658012,0.00011,2]
[334678040,1723465850952,-835.0,0.00011,2]
[334678041,1723465851006,-297495.0,0.00011,2]
[334678042,1723465910928,838.81,8.463e-05,2]
[334678044,1723465944926,1830.6106751,8.463e-05,2]
[334678045,1723465949263,251.25699733,8.463e-05,2]
[334678049,1723466423951,796.86,8.219e-05,2]
[334678065,1723466805215,217.43,9.649e-05,2]
[334678114,1723466862570,2152.26,9.624e-05,2]
[334678135,1723467031693,-200.0,9.658e-05,2]
[334678137,1723467031703,-300.0,9.662e-05,2]
[334678139,1723467031713,-1006.92253109,9.663e-05,2]
[334678141,1723467031725,-2763.18092288,9.663e-05,2]
[334678143,1723467031737,-6229.89654603,9.663e-05,2]
[334678145,1723467031746,-153.6,9.703e-05,2]
[334678147,1723467031756,-846.4,9.712e-05,2]
[334678149,1723467031766,-23900.0,9.712e-05,2]
[334678151,1723467031775,-150.0,9.755e-05,2]
[334678153,1723467031785,-250.0,9.756e-05,2]
[334678155,1723467031795,-1736.33553217,9.756e-05,2]
[334678157,1723467031805,-259.86,9.892e-05,2]
[334678159,1723467031815,-550.0,0.0001,2]
[334678161,1723467031825,-159.43,0.00010149,2]
[334678163,1723467031834,-499.99,0.00010149,2]
[334678165,1723467031844,-159.43,0.00010159,2]
[334678167,1723467031853,-159.43,0.00010169,2]
[334678169,1723467031863,-159.43,0.00010179,2]
[334678170,1723467031872,-159.43,0.00010189,2]
[334678171,1723467031882,-159.43,0.00010199,2]
[334678172,1723467031891,-2157.2903965,0.00010258,2]
[334678173,1723467031900,-303.95736794,0.00010258,2]
[334678174,1723467031909,-796.86,0.00010462,2]
[334678175,1723467031919,-300.0,0.00010478,2]
[334678176,1723467031928,-421.01,0.00010541,2]
[334678177,1723467031937,-420.0,0.00010628,2]
[334678178,1723467031946,-255.0,0.00010731,2]
[334678179,1723467031956,-1321.62640258,0.000108,2]
[334678180,1723467031965,-539.48154861,0.00010899,2]
[334678181,1723467031975,-1324.892,0.000109,2]
[334678182,1723467031984,-10555.0436,0.000109,2]
[334678183,1723467031993,-14375.15614134,0.000109,2]
[334678184,1723467032003,-170.89081318,0.000109,2]
[334678185,1723467032012,-3307.00947382,0.000109,2]
[334678186,1723467032021,-452.88966576,0.000109,2]
[334678187,1723467032031,-153.6,0.00010916,2]
[334678188,1723467032040,-846.4,0.00010926,2]
[334678189,1723467032051,-200.0,0.00010973,2]
[334678190,1723467032064,-200.0,0.00010973,2]
[334678191,1723467032073,-200.0,0.00010973,2]
[334678192,1723467032083,-8336.91249144,0.00010997,2]
[334678193,1723467032092,-211.52985921,0.00010999,2]
[334678194,1723467032103,-787.19020655,0.00010999,2]
[334678195,1723467032112,-993.006,0.00010999,2]
[334678196,1723467032121,-213494.73995395,0.00011,2]
[334678197,1723467032131,-63592.26272427,0.00011,2]
[334678198,1723467032144,-2219.57379425,0.00011,2]
[334678199,1723467032169,-562.21440665,0.00011,2]
[334678200,1723467032180,-700.28724917,0.00011,2]
[334678201,1723467032191,-3603.53690901,0.00011,2]
[334678202,1723467032202,-370.19261992,0.00011,2]
[334678203,1723467032214,-521.97670531,0.00011,2]
[334678204,1723467032225,-279.92831739,0.00011,2]
[334678205,1723467032236,-26919.95610758,0.00011,2]
[334678206,1723467032247,-1259.58718006,0.00011,2]
[334678207,1723467032258,-918.73970878,0.00011,2]
[334678208,1723467032273,-2999.15,0.00011,2]
[334678209,1723467032284,-4688.66082144,0.00011,2]
[334678210,1723467032300,-448.6520833,0.00011,2]
[334678211,1723467032312,-1699.49722843,0.00011,2]
[334678212,1723467032331,-1062.65487109,0.00011,2]
[334678213,1723467032344,-1245.568807,0.00011,2]
[334678214,1723467032355,-29682.84713518,0.00011,2]
[334678215,1723467032367,-59120.83092424,0.00011,2]
[334678216,1723467032379,-6517.56260146,0.00011,2]
[334678217,1723467032395,-821.84153478,0.00011,2]
[334678218,1723467032407,-468.09747962,0.00011,2]
[334678220,1723467037741,-854.34805812,0.00011,2]
[334678223,1723467037861,-880.12,0.00011,2]
[334678224,1723467037906,-3295.73985537,0.00011,2]
[334678225,1723467037918,-1850.0,0.00011,2]
[334678226,1723467037942,-853.08727691,0.00011,2]
[334678227,1723467037953,-3879.31648734,0.00011,2]
[334678228,1723467037965,-1765.0,0.00011,2]
[334678229,1723467037976,-11365.76972362,0.00011,2]
[334678230,1723467038027,-451.57864314,0.00011,2]
[334678231,1723467038039,-1512.27005833,0.00011,2]
[334678232,1723467038052,-955.97027776,0.00011,2]
[334678233,1723467038067,-4936.4916975,0.00011,2]
[334678234,1723467038092,-19834.287815,0.00011,2]
[334678235,1723467038105,-8971.10209733,0.00011,2]
[334678236,1723467038118,-10336.68151526,0.00011,2]
[334678237,1723467038129,-4677.82886025,0.00011,2]
[334678238,1723467038144,-452.64,0.00011,2]
[334678239,1723467038155,-863.84,0.00011,2]
[334678241,1723467038167,-941.43031319,0.00011,2]
[334678398,1723467039756,-300.0,0.00011,2]
[334678407,1723467039835,-989.22878096,0.00011,2]
[334678409,1723467039846,-952.47687904,0.00011,2]
[334678411,1723467039858,-1819.99999776,0.00011,2]
[334678414,1723467039870,-530.86535505,0.00011,2]
[334678416,1723467039882,-7475.00000022,0.00011,2]
[334678418,1723467039895,-118259.65637102,0.00011,2]
[334678431,1723467040012,-1981.9245248,0.00011,2]
[334678433,1723467040023,-1159.42776712,0.00011,2]
[334678435,1723467040035,-2947.49492018,0.00011,2]
[334678439,1723467040073,-928.3020743,0.00011,2]
[334678442,1723467040084,-453.8784,0.00011,2]
[334678444,1723467040095,-4130.24694756,0.00011,2]
[334678707,1723467042781,-191.92342253,0.0001045,2]
[334678710,1723467042791,-376.98849679,0.00011,2]
[334678809,1723467043685,-405.466,0.00011,2]
[334678811,1723467043697,-5350.19999999,0.00011,2]
[334678815,1723467043723,-29668.44538032,0.00011,2]
[334678817,1723467043735,-265013.95831489,0.00011,2]
[334678819,1723467043746,-202738.79670165,0.00011,2]
[334678822,1723467043759,-294.38089567,0.00011,2]
[334678933,1723467045824,-311.41590589,0.00010999,2]
[334678935,1723467045834,-686.91009411,0.00011,2]
[334678940,1723467045933,-3498.87103814,0.00011,2]
[334678941,1723467045945,-669.58337309,0.00011,2]
[334678942,1723467045998,-6199.82542257,0.00011,2]
[334678955,1723467046111,-269.24,0.00011,2]
[334679177,1723467053574,717.17,8.872e-05,2]
[334679280,1723467757084,706.42,8.219e-05,2]
[334679357,1723468158395,540.0,0.00025,60]
[334679445,1723468231952,-250.0,9.844e-05,2]
[334679446,1723468231961,-43.43812873,9.886e-05,2]
[334679447,1723468231973,-164.45187127,9.886e-05,2]
[334679448,1723468231983,-300.0,9.989e-05,2]
[334679449,1723468231992,-2525.69812873,9.99e-05,2]
[334679450,1723468232004,-2879.4795,9.99e-05,2]
[334679451,1723468232024,-787.72537109,9.99e-05,2]
[334679452,1723468232036,-753.09403611,9.99e-05,2]
[334679453,1723468232047,-824.49360169,9.99e-05,2]
[334679454,1723468232059,-2921.58936238,9.99e-05,2]
[334679455,1723468232068,-507.84,9.993e-05,2]
[334679456,1723468232078,-550.0,0.0001,2]
[334679457,1723468232087,-3332.33,0.00010003,2]
[334679458,1723468232097,-166.9,0.00010072,2]
[334679459,1723468232107,-492.16,0.00010123,2]
[334679460,1723468232116,-183.02,0.00010212,2]
[334679461,1723468232125,-183.02,0.00010263,2]
[334679462,1723468232135,-153.28,0.00010277,2]
[334679463,1723468232146,-706.42,0.00010479,2]
[334679464,1723468232155,-1669.22,0.000105,2]
[334679465,1723468232164,-420.92,0.000105,2]
[334679466,1723468232174,-150.0,0.00010578,2]
[334679467,1723468232183,-156.0,0.00010578,2]
[334679468,1723468232193,-1672.0,0.00010722,2]
[334679469,1723468232202,-289.0,0.00010722,2]
[334679470,1723468232212,-21756.0,0.00010722,2]
[334679471,1723468232222,-264.49036255,0.00010754,2]
[334679472,1723468232231,-948.7757435,0.00010754,2]
[334679474,1723468232240,-1257.5209126,0.00010754,2]
[334679475,1723468232250,-499.99,0.00010754,2]
[334679476,1723468232260,-342.9772,0.000109,2]
[334679477,1723468232269,-3110.4897,0.000109,2]
[334679478,1723468232279,-12801.2024,0.000109,2]
[334679479,1723468232288,-835.2933,0.000109,2]
[334679480,1723468232298,-183.70762414,0.000109,2]
[334679481,1723468232308,-3106.58465724,0.000109,2]
[334679482,1723468232317,-14061.05713548,0.000109,2]
[334679483,1723468232327,-223.39732564,0.000109,2]
[334679484,1723468232336,-250.0,0.00010959,2]
[334679485,1723468232345,-200.0,0.00010973,2]
[334679486,1723468232355,-420.0,0.00010988,2]
[334679487,1723468232374,-1435.01750885,0.00010997,2]
[334679488,1723468232385,-15773.6452908,0.00010997,2]
[334679489,1723468232397,-11480.1400708,0.00010997,2]
[334679490,1723468232406,-1031.54405097,0.00010999,3]
[334679491,1723468232415,-1031.54405097,0.00010999,3]
[334679492,1723468232426,-1031.54405097,0.00010999,3]
[334679493,1723468232439,-1031.54405097,0.00010999,3]
[334679494,1723468232449,-1031.54405097,0.00010999,3]
[334679495,1723468232459,-1031.54405098,0.00010999,3]
[334679496,1723468232468,-63808.73430055,0.00011,2]
[334679497,1723468233021,-200.0,0.00010973,2]
[334679498,1723468233030,-245.10286169,0.00011,2]
[334679499,1723468233042,-598.1,0.00011,2]
[334679500,1723468233054,-1155.72649835,0.00011,2]
[334679501,1723468233065,-4285.0314112,0.00011,2]
[334679502,1723468233076,-8656.4358,0.00011,2]
[334679503,1723468238039,-200.0,0.00010973,2]
[334679504,1723468238048,-74456.48505753,0.00011,2]
[334679505,1723468238059,-2650.58940924,0.00011,2]
[334679506,1723468238071,-1925.36,0.00011,2]
[334679507,1723468238082,-29901.49999999,0.00011,2]
[334679508,1723468238155,-66323.53331885,0.00011,2]
[334679523,1723468240004,-1121.2213578,0.000109,2]
[334679524,1723468240116,-3514.3830422,0.000109,2]
[334679525,1723468240126,-415199.37645384,0.00011,2]
[334679526,1723468240136,-49156.740424,0.00011,2]
[334679527,1723468240146,-550710.33902918,0.00011,2]
[334679528,1723468240160,-201.0,0.00011,2]
[334679529,1723468240170,-201.0,0.00011,2]
[334679530,1723468240180,-201.0,0.00011,2]
[334679531,1723468240190,-201.0,0.00011,2]
[334679532,1723468240199,-201.0,0.00011,2]
[334679533,1723468240208,-201.0,0.00011,2]
[334679534,1723468240218,-206.0,0.00011,2]
[334679535,1723468240227,-200.0,0.00011,2]
[334679536,1723468240237,-200.0,0.00011,2]
[334679537,1723468240247,-496.92696712,0.00011,2]
[334679538,1723468240256,-200.0,0.00011,2]
[334679539,1723468240266,-209.0,0.00011,2]
[334679540,1723468240275,-200.0,0.00011,2]
[334679541,1723468240284,-200.0,0.00011,2]
[334679542,1723468240294,-206.0,0.00011,2]
[334679543,1723468240303,-206.0,0.00011,2]
[334679544,1723468240313,-200.0,0.00011,2]
[334679545,1723468240323,-200.0,0.00011,2]
[334679546,1723468240333,-206.0,0.00011,2]
[334679547,1723468240342,-372.46576583,0.00011,2]
[334679548,1723468240351,-200.0,0.00011,2]
[334679549,1723468240361,-206.0,0.00011,2]
[334679550,1723468240370,-206.0,0.00011,2]
[334679551,1723468240381,-200.0,0.00011,2]
[334679552,1723468240391,-1000.0,0.00011,2]
[334679553,1723468240402,-1000.0,0.00011,2]
[334679556,1723468240411,-1000.0,0.00011,2]
[334679559,1723468240421,-1000.0,0.00011,2]
[334679562,1723468240433,-1000.0,0.00011,2]
[334679565,1723468240443,-1000.0,0.00011,2]
[334679568,1723468240453,-1832581.45494896,0.00011,2]
[334679571,1723468240463,-250.0,0.00011,2]
[334679574,1723468240472,-282007.61544199,0.00011,2]
[334679577,1723468240485,-428.0,0.00011,2]
[334679579,1723468240495,-428.0,0.00011,2]
[334679582,1723468240506,-428.0,0.00011,2]
[334679584,1723468240515,-428.0,0.00011,2]
[334679586,1723468240524,-428.0,0.00011,2]
[334679589,1723468240533,-428.0,0.00011,2]
[334679592,1723468240542,-428.0,0.00011,2]
[334679594,1723468240552,-428.0,0.00011,2]
[334679597,1723468240561,-500.0,0.00011,2]
[334679600,1723468240570,-500.0,0.00011,2]
[334679602,1723468240579,-500.0,0.00011,2]
[334679605,1723468240588,-500.0,0.00011,2]
[334679608,1723468240598,-500.0,0.00011,2]
[334679610,1723468240607,-500.0,0.00011,2]
[334679613,1723468240618,-500.0,0.00011,2]
[334679616,1723468240627,-922.0,0.00011,2]
[334679618,1723468240637,-316621.62344448,0.00011,2]
[334679620,1723468240647,-1050.68636838,0.00011,2]
[334679622,1723468240656,-413.15115888,0.00011,2]
[334679624,1723468240666,-299.98698689,0.00011,2]
[334679626,1723468240675,-181.84064908,0.00011,2]
[334679628,1723468240684,-449.58622418,0.00011,2]
[334679630,1723468240693,-151.0,0.00011,2]
[334679632,1723468240703,-151.0,0.00011,2]
[334679634,1723468240712,-151.0,0.00011,2]
[334679636,1723468240722,-151.0,0.00011,2]
[334679638,1723468240732,-151.0,0.00011,2]
[334679640,1723468240741,-151.0,0.00011,2]
[334679642,1723468240750,-151.0,0.00011,2]
[334679655,1723468240760,-153.677239,0.00011,2]
[334679658,1723468240889,-151.0,0.00011,2]
[334679660,1723468240900,-151.0,0.00011,2]
[334679662,1723468240909,-151.0,0.00011,2]
[334679664,1723468240919,-151.0,0.00011,2]
[334679665,1723468240928,-151.0,0.00011,2]
[334679668,1723468240938,-151.0,0.00011,2]
[334679669,1723468240947,-151.0,0.00011,2]
[334679671,1723468240957,-151.0,0.00011,2]
[334679673,1723468240966,-151.0,0.00011,2]
[334679675,1723468240975,-151.0,0.00011,2]
[334679677,1723468240985,-151.0,0.00011,2]
[334679679,1723468240996,-151.0,0.00011,2]
[334679681,1723468241006,-151.0,0.00011,2]
[334679683,1723468241016,-151.0,0.00011,2]
[334679686,1723468241027,-151.0,0.00011,2]
[334679688,1723468241038,-151.0,0.00011,2]
[334679689,1723468241048,-151.0,0.00011,2]
[334679691,1723468241058,-151.0,0.00011,2]
[334679693,1723468241067,-151.0,0.00011,2]
[334679695,1723468241077,-151.0,0.00011,2]
[334679697,1723468241086,-151.0,0.00011,2]
[334679699,1723468241096,-151.0,0.00011,2]
[334679701,1723468241106,-233.710204,0.00011,2]
[334679703,1723468241115,-151.0,0.00011,2]
[334679705,1723468241125,-151.0,0.00011,2]
[334679707,1723468241134,-151.0,0.00011,2]
[334679709,1723468241143,-151.0,0.00011,2]
[334679711,1723468241157,-151.0,0.00011,2]
[334679713,1723468241167,-151.0,0.00011,2]
[334679715,1723468241176,-151.0,0.00011,2]
[334679717,1723468241186,-151.0,0.00011,2]
[334679719,1723468241196,-151.0,0.00011,2]
[334679721,1723468241207,-151.0,0.00011,2]
[334679723,1723468241216,-151.0,0.00011,2]
[334679725,1723468241227,-151.0,0.00011,2]
[334679727,1723468241237,-151.0,0.00011,2]
[334679729,1723468241247,-151.0,0.00011,2]
[334679731,1723468241257,-259.787437,0.00011,2]
[334679733,1723468241267,-300.915235,0.00011,2]
[334679735,1723468241277,-300.915235,0.00011,2]
[334679737,1723468241286,-300.915235,0.00011,2]
[334679739,1723468241295,-159.681171,0.00011,2]
[334679741,1723468241305,-300.915235,0.00011,2]
[334679743,1723468241315,-159.681171,0.00011,2]
[334679744,1723468241325,-300.915235,0.00011,2]
[334679745,1723468241334,-159.681171,0.00011,2]
[334679746,1723468241344,-159.681171,0.00011,2]
[334679747,1723468241353,-300.915235,0.00011,2]
[334679748,1723468241362,-159.681171,0.00011,2]
[334679749,1723468241372,-300.915235,0.00011,2]
[334679750,1723468241381,-300.915235,0.00011,2]
[334679751,1723468241391,-159.681171,0.00011,2]
[334679752,1723468241405,-300.915235,0.00011,2]
[334679753,1723468241414,-159.681171,0.00011,2]
[334679754,1723468241424,-300.915235,0.00011,2]
[334679755,1723468241438,-159.681171,0.00011,2]
[334679756,1723468241447,-300.915235,0.00011,2]
[334679757,1723468241456,-159.681171,0.00011,2]
[334679758,1723468241465,-300.915235,0.00011,2]
[334679759,1723468241475,-159.681171,0.00011,2]
[334679760,1723468241484,-300.915235,0.00011,2]
[334679761,1723468241493,-159.681171,0.00011,2]
[334679762,1723468241504,-300.915235,0.00011,2]
[334679763,1723468241514,-159.681171,0.00011,2]
[334679764,1723468241524,-300.915235,0.00011,2]
[334679765,1723468241533,-159.681171,0.00011,2]
[334679766,1723468241543,-300.915235,0.00011,2]
[334679767,1723468241552,-159.681171,0.00011,2]
[334679768,1723468241562,-300.915235,0.00011,2]
[334679769,1723468241571,-159.681171,0.00011,2]
[334679770,1723468241581,-300.915235,0.00011,2]
[334679771,1723468241590,-159.681171,0.00011,2]
[334679772,1723468241600,-159.681171,0.00011,2]
[334679773,1723468241609,-300.915235,0.00011,2]
[334679774,1723468241619,-159.681171,0.00011,2]
[334679775,1723468241628,-300.915235,0.00011,2]
[334679776,1723468241637,-159.681171,0.00011,2]
[334679777,1723468241647,-159.681172,0.00011,2]
[334679778,1723468241657,-151.0,0.00011,2]
[334679779,1723468241667,-151.0,0.00011,2]
[334679780,1723468241676,-151.0,0.00011,2]
[334679781,1723468241687,-151.0,0.00011,2]
[334679782,1723468241696,-151.0,0.00011,2]
[334679783,1723468241706,-151.0,0.00011,2]
[334679784,1723468241715,-151.0,0.00011,2]
[334679785,1723468241724,-151.0,0.00011,2]
[334679786,1723468241735,-151.0,0.00011,2]
[334679787,1723468241744,-151.0,0.00011,2]
[334679788,1723468241754,-151.0,0.00011,2]
[334679789,1723468241764,-247.887783,0.00011,2]
[334679790,1723468241773,-151.0,0.00011,2]
[334679791,1723468241783,-151.0,0.00011,2]
[334679792,1723468241793,-151.0,0.00011,2]
[334679793,1723468241803,-151.0,0.00011,2]
[334679794,1723468241813,-151.0,0.00011,2]
[334679795,1723468241822,-151.0,0.00011,2]
[334679796,1723468241832,-151.0,0.00011,2]
[334679797,1723468241841,-151.0,0.00011,2]
[334679798,1723468241850,-151.0,0.00011,2]
[334679799,1723468241860,-154.132119,0.00011,2]
[334679800,1723468241869,-151.0,0.00011,2]
[334679801,1723468241878,-151.0,0.00011,2]
[334679802,1723468241888,-151.0,0.00011,2]
[334679803,1723468241898,-151.0,0.00011,2]
[334679804,1723468241907,-154.809201,0.00011,2]
[334679805,1723468241917,-151.0,0.00011,2]
[334679806,1723468241927,-151.0,0.00011,2]
[334679807,1723468241936,-151.0,0.00011,2]
[334679808,1723468241946,-151.0,0.00011,2]
[334679809,1723468241955,-151.0,0.00011,2]
[334679810,1723468241964,-186.091295,0.00011,2]
[334679811,1723468241974,-151.0,0.00011,2]
[334679812,1723468241983,-151.0,0.00011,2]
[334679813,1723468241993,-151.0,0.00011,2]
[334679814,1723468242003,-151.0,0.00011,2]
[334679815,1723468242012,-151.0,0.00011,2]
[334679816,1723468242021,-151.0,0.00011,2]
[334679817,1723468242032,-151.0,0.00011,2]
[334679818,1723468242041,-151.0,0.00011,2]
[334679819,1723468242051,-151.0,0.00011,2]
[334679820,1723468242060,-151.0,0.00011,2]
[334679821,1723468242069,-151.0,0.00011,2]
[334679822,1723468242079,-151.0,0.00011,2]
[334679823,1723468242088,-151.0,0.00011,2]
[334679824,1723468242097,-151.0,0.00011,2]
[334679825,1723468242106,-151.0,0.00011,2]
[334679826,1723468242116,-265.252643,0.00011,2]
[334679827,1723468242126,-173.632308,0.00011,2]
[334679828,1723468242135,-173.632308,0.00011,2]
[334679829,1723468242145,-173.632308,0.00011,2]
[334679830,1723468242155,-173.632308,0.00011,2]
[334679831,1723468242164,-173.632308,0.00011,2]
[334679832,1723468242174,-173.632308,0.00011,2]
[334679833,1723468242183,-173.632308,0.00011,2]
[334679834,1723468242193,-173.632308,0.00011,2]
[334679835,1723468242202,-173.632308,0.00011,2]
[334679836,1723468242212,-173.632308,0.00011,2]
[334679837,1723468242221,-173.632308,0.00011,2]
[334679838,1723468242231,-173.632308,0.00011,2]
[334679839,1723468242241,-173.632308,0.00011,2]
[334679840,1723468242251,-173.632308,0.00011,2]
[334679841,1723468242260,-173.632308,0.00011,2]
[334679842,1723468242269,-173.632308,0.00011,2]
[334679843,1723468242279,-151.0,0.00011,2]
[334679844,1723468242289,-151.0,0.00011,2]
[334679845,1723468242299,-200.149565,0.00011,2]
[334679846,1723468242308,-151.0,0.00011,2]
[334679847,1723468242318,-151.0,0.00011,2]
[334679848,1723468242327,-151.0,0.00011,2]
[334679849,1723468242336,-151.0,0.00011,2]
[334679850,1723468242345,-151.0,0.00011,2]
[334679851,1723468242355,-151.0,0.00011,2]
[334679852,1723468242364,-151.0,0.00011,2]
[334679853,1723468242374,-151.0,0.00011,2]
[334679854,1723468242383,-151.0,0.00011,2]
[334679855,1723468242394,-151.0,0.00011,2]
[334679856,1723468242405,-151.0,0.00011,2]
[334679857,1723468242415,-151.0,0.00011,2]
[334679858,1723468242427,-151.0,0.00011,2]
[334679859,1723468242439,-184.385504,0.00011,2]
[334679860,1723468242450,-151.0,0.00011,2]
[334679861,1723468242460,-151.0,0.00011,2]
[334679862,1723468242471,-151.0,0.00011,2]
[334679863,1723468242586,-151.0,0.00011,2]
[334679864,1723468242597,-151.0,0.00011,2]
[334679865,1723468242607,-151.0,0.00011,2]
[334679866,1723468242617,-151.0,0.00011,2]
[334679867,1723468242627,-292.978005,0.00011,2]
[334679868,1723468242636,-151.0,0.00011,2]
[334679869,1723468242648,-151.0,0.00011,2]
[334679870,1723468242657,-151.0,0.00011,2]
[334679872,1723468242666,-151.0,0.00011,2]
[334679873,1723468242676,-151.0,0.00011,2]
[334679876,1723468242686,-151.0,0.00011,2]
[334679877,1723468242696,-151.0,0.00011,2]
[334679880,1723468242705,-151.0,0.00011,2]
[334679882,1723468242716,-151.0,0.00011,2]
[334679884,1723468242726,-159.473574,0.00011,2]
[334679886,1723468242735,-407.606143,0.00011,2]
[334679888,1723468242745,-407.606143,0.00011,2]
[334679889,1723468242755,-407.606143,0.00011,2]
[334679892,1723468242764,-407.606143,0.00011,2]
[334679894,1723468242774,-407.606143,0.00011,2]
[334679896,1723468242783,-407.606143,0.00011,2]
[334679898,1723468242793,-407.606143,0.00011,2]
[334679900,1723468242802,-407.606143,0.00011,2]
[334679903,1723468242811,-407.606143,0.00011,2]
[334679906,1723468242821,-407.606143,0.00011,2]
[334679909,1723468242831,-407.606143,0.00011,2]
[334679912,1723468242840,-407.606143,0.00011,2]
[334679915,1723468242849,-407.606143,0.00011,2]
[334679918,1723468242858,-407.606143,0.00011,2]
[334679921,1723468242868,-407.606143,0.00011,2]
[334679925,1723468242877,-407.606143,0.00011,2]
[334679929,1723468242887,-407.606143,0.00011,2]
[334679932,1723468242896,-407.606143,0.00011,2]
[334679935,1723468242906,-407.606143,0.00011,2]
[334679936,1723468242915,-151.0,0.00011,2]
[334679939,1723468242925,-407.606152,0.00011,2]
[334679940,1723468242934,-151.0,0.00011,2]
[334679942,1723468242943,-151.0,0.00011,2]
[334679944,1723468242953,-151.0,0.00011,2]
[334679946,1723468242962,-151.0,0.00011,2]
[334679949,1723468242972,-151.0,0.00011,2]
[334679951,1723468242982,-151.0,0.00011,2]
[334679953,1723468242992,-151.0,0.00011,2]
[334679955,1723468243002,-151.0,0.00011,2]
[334679957,1723468243011,-151.0,0.00011,2]
[334679959,1723468243021,-151.0,0.00011,2]
[334679961,1723468243031,-151.0,0.00011,2]
[334679963,1723468243040,-228.40633,0.00011,2]
[334679965,1723468243049,-454.831213,0.00011,2]
[334679967,1723468243059,-454.831213,0.00011,2]
[334679969,1723468243068,-454.831213,0.00011,2]
[334679971,1723468243077,-454.831213,0.00011,2]
[334679973,1723468243086,-454.831213,0.00011,2]
[334679975,1723468243096,-454.831213,0.00011,2]
[334679977,1723468243106,-454.831213,0.00011,2]
[334679979,1723468243115,-454.831213,0.00011,2]
[334679981,1723468243125,-454.831213,0.00011,2]
[334679983,1723468243134,-454.831213,0.00011,2]
[334679985,1723468243144,-454.831213,0.00011,2]
[334679987,1723468243155,-454.831213,0.00011,2]
[334679989,1723468243165,-454.831213,0.00011,2]
[334679991,1723468243174,-454.831213,0.00011,2]
[334679993,1723468243184,-454.831213,0.00011,2]
[334679995,1723468243193,-454.831213,0.00011,2]
[334679997,1723468243203,-151.0,0.00011,2]
[334679999,1723468243212,-151.0,0.00011,2]